bitfinex/quotes_SOLUSD_20250308
["timestamp","ask_amount","ask_price","bid_price","bid_amount"]
[1741392753433,140.33075627,139.28,139.21,50.85075627]
[1741392753724,140.33075627,139.28,139.22,50.85075627]
[1741392754424,82.3,139.28,139.23,50.85075627]
[1741392754632,6.0936,139.36,139.27,50.85075627]
[1741392754829,0.033,139.37,139.31,50.85075627]
[1741392755123,0.033,139.37,139.35,50.85075627]
[1741392755330,0.033,139.37,139.36,50.85075627]
[1741392755708,0.0001,139.37,139.36,101.70151254]
[1741392755924,90.0104,139.48,139.36,101.70151254]
[1741392756221,90.0104,139.48,139.42,50.85075627]
[1741392756529,90.0104,139.48,139.42,58.02305627]
[1741392757136,50.85075627,139.46,139.39,50.85075627]
[1741392757523,50.85075627,139.47,139.4,50.85075627]
[1741392757820,50.85075627,139.44,139.38,50.85075627]
[1741392758011,50.85075627,139.44,139.37,50.85075627]
[1741392758212,50.85075627,139.43,139.37,50.85075627]
[1741392758729,50.85075627,139.41,139.31,7.1782]
[1741392758915,50.85075627,139.4,139.34,50.85075627]
[1741392759108,50.85075627,139.4,139.33,50.85075627]
[1741392759310,33.84727829,139.39,139.33,33.84727829]
[1741392759532,33.84727829,139.39,139.32,33.84727829]
[1741392760130,33.84727829,139.38,139.32,33.84727829]
[1741392760329,33.84727829,139.39,139.33,33.84727829]
[1741392760524,41.01877829,139.44,139.37,33.84727829]
[1741392760935,7.1715,139.44,139.38,33.84727829]
[1741392761226,41.01877829,139.44,139.37,33.84727829]
[1741392761432,33.84727829,139.42,139.36,33.84727829]
[1741392761932,41.01877829,139.44,139.37,33.84727829]
[1741392762136,82.3,139.45,139.39,33.84727829]
[1741392762331,89.4712,139.45,139.39,33.84727829]
[1741392762524,82.3,139.45,139.4,33.84727829]
[1741392762725,33.84727829,139.44,139.37,33.84727829]
[1741392763026,33.84727829,139.42,139.36,33.84727829]
[1741392763338,50.74932127,139.43,139.36,50.74932127]
[1741392763912,82.3,139.44,139.38,50.74932127]
[1741392764116,57.92042127,139.45,139.38,50.74932127]
[1741392764332,50.74932127,139.43,139.36,50.74932127]
[1741392764535,50.74932127,139.39,139.3,134.6]
[1741392764721,50.0,139.41,139.29,7.1791]
[1741392765725,50.74932127,139.38,139.31,50.74932127]
[1741392766244,7.1751,139.37,139.31,50.74932127]
[1741392766441,50.74932127,139.36,139.27,7.1802]
[1741392766738,50.74932127,139.32,139.25,52.51828387]
[1741392766944,50.74932127,139.31,139.25,1.7689626]
[1741392767146,82.3,139.34,139.26,50.74932127]
[1741392767345,50.74932127,139.32,139.26,50.74932127]
[1741392767733,50.74932127,139.33,139.27,50.74932127]
[1741392768142,7.1777,139.32,139.26,50.74932127]
[1741392768457,57.92662127,139.33,139.26,50.74932127]
[1741392768628,57.92662127,139.33,139.27,50.74932127]
[1741392768829,57.92662127,139.33,139.26,50.74932127]
[1741392769523,57.92662127,139.33,139.26,57.92962127]
[1741392770847,50.74932127,139.32,139.25,52.51828387]
[1741392771150,50.74932127,139.32,139.25,59.69918387]
[1741392771326,140.22602127,139.34,139.28,50.74932127]
[1741392771646,89.4767,139.34,139.28,50.74932127]
[1741392771848,82.3,139.34,139.29,50.74932127]
[1741392772143,89.4767,139.34,139.29,50.74932127]
[1741392772320,6.2113,139.38,139.31,50.74932127]
[1741392772526,50.74932127,139.37,139.26,135.67676017]
[1741392772743,50.74932127,139.36,139.3,50.74932127]
[1741392773017,57.92542127,139.35,139.29,50.74932127]
[1741392773223,50.74932127,139.34,139.27,50.74932127]
[1741392773442,50.74932127,139.32,139.26,50.74932127]
[1741392773643,50.74932127,139.31,139.25,52.51828387]
[1741392773829,50.74932127,139.32,139.25,59.69948387]
[1741392774028,50.74932127,139.32,139.26,50.74932127]
[1741392774228,82.3,139.34,139.29,50.74932127]
[1741392774431,50.74932127,139.36,139.3,50.74932127]
[1741392774432,7.1758,139.36,139.3,50.74932127]
[1741392774950,89.4751,139.37,139.25,62.8100626]
[1741392775134,89.4751,139.37,139.32,50.74932127]
[1741392775445,82.3,139.37,139.32,50.74932127]
[1741392776041,89.4752,139.37,139.32,50.74932127]
[1741392776249,89.4752,139.37,139.31,50.74932127]
[1741392776639,56.96062127,139.38,139.25,63.88657669]
[1741392776640,13.3861,139.38,139.32,50.74932127]
[1741392776825,0.033,139.38,139.34,50.74932127]
[1741392777326,0.033,139.38,139.34,57.92592127]
[1741392777748,0.033,139.38,139.33,57.92632127]
[1741392778251,0.033,139.38,139.32,50.74932127]
[1741392779026,0.033,139.38,139.33,57.92652127]
[1741392780056,50.74932127,139.37,139.3,50.74932127]
[1741392780239,50.74932127,139.35,139.28,50.74932127]
[1741392780629,50.74932127,139.36,139.31,0.03]
[1741392781033,57.92542127,139.35,139.31,0.03]
[1741392781444,50.74932127,139.33,139.31,0.03]
[1741392781760,25.1165,139.35,139.31,0.03]
[1741392781761,140.22542127,139.35,139.31,0.03]
[1741392782943,50.74932127,139.34,139.31,0.03]
[1741392783251,33.88161952,139.32,139.31,0.03]
[1741392783460,33.88161952,139.32,139.25,1.7689626]
[1741392783662,33.88161952,139.29,139.25,1.7689626]
[1741392783954,113.7884,139.33,139.25,1.7689626]
[1741392783955,33.88161952,139.28,139.25,1.7689626]
[1741392784168,33.88161952,139.26,139.25,1.7689626]
[1741392785147,41.06241952,139.26,139.25,1.7689626]
[1741392785733,7.1808,139.26,139.25,1.7689626]
[1741392786254,7.1797,139.28,139.25,1.7689626]
[1741392786440,123.36101952,139.29,139.25,1.7689626]
[1741392786643,33.88161952,139.28,139.25,1.7689626]
[1741392787350,33.88161952,139.26,139.25,1.7689626]
[1741392787536,100.2484,139.29,139.25,1.7689626]
[1741392787537,41.06151952,139.28,139.25,1.7689626]
[1741392787951,123.36101952,139.29,139.25,1.7689626]
[1741392788337,33.88161952,139.26,139.25,1.7689626]
[1741392789369,41.06241952,139.26,139.25,1.7689626]
[1741392789742,41.06191952,139.27,139.25,1.7689626]
[1741392790244,7.1803,139.27,139.25,1.7689626]
[1741392790769,1.5169,139.3,139.25,42.83178212]
[1741392791003,6.3682,139.33,139.26,33.88161952]
[1741392791270,13.5454,139.33,139.28,33.88161952]
[1741392791638,7.1768,139.34,139.29,33.88161952]
[1741392792146,7.1768,139.34,139.27,33.88161952]
[1741392792147,33.88161952,139.33,139.27,33.88161952]
[1741392792352,41.05841952,139.34,139.28,33.88161952]
[1741392792556,7.1768,139.34,139.28,33.88161952]
[1741392793781,7.1768,139.34,139.28,41.06101952]
[1741392794180,41.05841952,139.34,139.28,41.06101952]
[1741392794347,33.88161952,139.32,139.25,35.65058212]
[1741392794552,33.88161952,139.31,139.27,0.03]
[1741392795180,33.88161952,139.32,139.27,0.03]
[1741392795351,33.88161952,139.33,139.27,33.91161952]
[1741392795557,8.8643,139.35,139.29,33.88161952]
[1741392795988,42.74591952,139.35,139.29,33.88161952]
[1741392796176,42.74591952,139.35,139.28,41.06121952]
[1741392796477,42.74591952,139.35,139.29,33.88161952]
[1741392796869,0.033,139.35,139.32,33.88161952]
[1741392797183,0.033,139.35,139.33,33.88161952]
[1741392797682,0.033,139.35,139.32,33.88161952]
[1741392798274,0.033,139.35,139.29,33.88161952]
[1741392798488,33.88161952,139.34,139.27,41.09171952]
[1741392798685,41.09071952,139.35,139.28,33.88161952]
[1741392799160,33.88161952,139.34,139.28,33.88161952]
[1741392799357,33.88161952,139.34,139.27,0.03]
[1741392799561,33.88161952,139.33,139.27,0.03]
[1741392799879,33.88161952,139.32,139.27,0.03]
[1741392800077,33.88161952,139.31,139.27,0.03]
[1741392800282,33.88161952,139.29,139.27,0.03]
[1741392800689,33.88161952,139.28,139.27,0.03]
[1741392800990,41.06131952,139.28,139.27,0.03]
[1741392801165,59.01071952,139.28,139.25,1.7689626]
[1741392801361,33.88161952,139.26,139.25,1.7689626]
[1741392802982,41.06241952,139.26,139.25,1.7689626]
[1741392803187,82.3,139.27,139.25,1.7689626]
[1741392803188,89.4804,139.27,139.25,1.7689626]
[1741392803528,123.36201952,139.27,139.25,1.7689626]
[1741392804065,89.4804,139.27,139.25,1.7689626]
[1741392804264,123.36201952,139.27,139.25,1.7689626]
[1741392804668,82.3,139.31,139.25,1.7689626]
[1741392804867,7.1788,139.3,139.25,1.7689626]
[1741392805082,41.06041952,139.3,139.25,1.7689626]
[1741392805392,33.88161952,139.29,139.25,1.7689626]
[1741392806078,41.06041952,139.3,139.25,1.7689626]
[1741392806272,33.88161952,139.29,139.25,1.7689626]
[1741392806502,7.1788,139.3,139.25,1.7689626]
[1741392807007,123.35991952,139.31,139.25,1.7689626]
[1741392807573,7.1783,139.31,139.25,42.83178212]
[1741392807780,7.1783,139.31,139.26,33.88161952]
[1741392808003,33.88161952,139.3,139.25,1.7689626]
[1741392808591,41.05991952,139.31,139.25,1.7689626]
[1741392808784,7.1783,139.31,139.25,42.83168212]
[1741392808969,7.1783,139.31,139.26,33.88161952]
[1741392810517,1.546,139.33,139.27,33.88161952]
[1741392810678,116.18161952,139.34,139.28,33.88161952]
[1741392811100,116.18161952,139.34,139.27,33.88161952]
[1741392811699,7.1774,139.33,139.28,33.88161952]
[1741392812578,7.1774,139.33,139.27,33.88161952]
[1741392812987,7.1774,139.33,139.28,33.88161952]
[1741392814682,7.1774,139.33,139.27,41.06161952]
[1741392814890,41.05901952,139.33,139.26,33.88161952]
[1741392815490,7.1774,139.33,139.27,33.88161952]
[1741392815800,7.1774,139.33,139.28,33.88161952]
[1741392816183,7.1769,139.34,139.29,33.88161952]
[1741392817010,0.033,139.35,139.29,33.88161952]
[1741392817206,0.033,139.35,139.32,33.88161952]
[1741392817404,0.033,139.35,139.33,33.88161952]
[1741392817610,0.033,139.35,139.34,33.88161952]
[1741392817813,0.033,139.35,139.34,41.05821952]
[1741392818007,0.033,139.35,139.34,33.88161952]
[1741392818312,0.033,139.35,139.31,33.88161952]
[1741392818605,33.88161952,139.34,139.28,33.88161952]
[1741392818786,33.88161952,139.32,139.26,33.88161952]
[1741392819186,33.88161952,139.33,139.27,33.88161952]
[1741392819806,7.1777,139.32,139.27,33.88161952]
[1741392820689,41.05931952,139.32,139.26,33.88161952]
[1741392821288,33.88161952,139.3,139.25,1.7989626]
[1741392821496,33.88161952,139.28,139.25,1.7989626]
[1741392821801,7.1802,139.27,139.25,1.7989626]
[1741392823234,33.88161952,139.26,139.25,1.7989626]
[1741392823909,7.1808,139.26,139.25,1.7989626]
[1741392824119,41.06171952,139.28,139.25,1.7989626]
[1741392825818,7.1801,139.28,139.25,1.7989626]
[1741392826515,7.1787,139.3,139.25,35.68058212]
[1741392826699,7.1787,139.3,139.25,1.7989626]
[1741392827098,7.1787,139.3,139.25,42.86168212]
[1741392827518,35.39081952,139.33,139.26,33.88161952]
[1741392827719,42.56831952,139.33,139.26,33.88161952]
[1741392827915,42.56831952,139.33,139.26,41.06211952]
[1741392828441,33.88161952,139.32,139.25,42.86168212]
[1741392829412,7.1782,139.31,139.25,42.86168212]
[1741392829613,7.1779,139.32,139.26,33.88161952]
[1741392829832,42.56811952,139.33,139.27,33.88161952]
[1741392830136,41.05841952,139.34,139.28,33.88161952]
[1741392830344,41.05841952,139.34,139.29,6.62]
[1741392831522,33.88161952,139.32,139.29,6.62]
[1741392831838,33.88161952,139.31,139.25,35.68058212]
[1741392832147,33.88161952,139.26,139.25,1.7989626]
[1741392833564,41.06241952,139.26,139.25,1.7989626]
[1741392833843,7.1808,139.26,139.25,1.7989626]
[1741392835936,13.6778,139.27,139.25,1.7989626]
[1741392836146,8.8196,139.3,139.25,1.7989626]
[1741392836339,8.8196,139.3,139.25,35.68058212]
[1741392836914,8.8196,139.3,139.25,1.7989626]
[1741392837145,7.1789,139.3,139.25,35.68058212]
[1741392837933,7.1789,139.3,139.25,1.7989626]
[1741392838218,59.00731952,139.3,139.25,1.7989626]
[1741392838419,33.88161952,139.29,139.25,1.7989626]
[1741392838955,59.00731952,139.3,139.25,1.7989626]
[1741392839325,33.88161952,139.29,139.25,1.7989626]
[1741392839537,33.88161952,139.27,139.25,1.7989626]
[1741392840145,51.83141952,139.28,139.25,1.7989626]
[1741392840350,33.88161952,139.26,139.25,1.7989626]
[1741392840554,116.18161952,139.27,139.2,33.88161952]
[1741392840848,116.18161952,139.27,139.21,33.88161952]
[1741392841083,33.88161952,139.26,139.19,33.91161952]
[1741392841236,33.88161952,139.25,139.19,0.03]
[1741392841553,33.88161952,139.24,139.19,0.03]
[1741392842136,7.1823,139.23,139.19,0.03]
[1741392843355,7.1818,139.24,139.19,0.03]
[1741392843651,25.1364,139.24,139.19,0.03]
[1741392844623,59.01801952,139.24,139.19,0.03]
[1741392845025,33.88161952,139.2,139.19,0.0001]
[1741392845242,33.88161952,139.2,139.12,33.88161952]
[1741392845440,116.18161952,139.21,139.14,33.88161952]
[1741392845747,41.06551952,139.2,139.14,33.88161952]
[1741392845921,59.02521952,139.2,139.14,33.88161952]
[1741392846120,59.02521952,139.2,139.1,6.0859]
[1741392846326,33.88161952,139.17,139.11,33.88161952]
[1741392846549,33.88161952,139.17,139.1,39.96751952]
[1741392846848,33.88161952,139.18,139.11,33.88161952]
[1741392847342,33.88161952,139.14,139.05,0.03]
[1741392847540,33.88161952,139.15,139.08,33.88161952]
[1741392847739,7.1864,139.15,139.1,33.88161952]
[1741392848135,7.1864,139.15,139.09,33.88161952]
[1741392848429,41.06801952,139.15,139.09,33.88161952]
[1741392848635,7.1864,139.15,139.1,33.88161952]
[1741392849354,41.06801952,139.15,139.09,33.88161952]
[1741392849847,7.1864,139.15,139.09,33.88161952]
[1741392850440,7.1864,139.15,139.1,33.88161952]
[1741392850634,7.1864,139.15,139.09,33.88161952]
[1741392851626,33.88161952,139.14,139.08,40.60161952]
[1741392851831,33.88161952,139.14,139.08,6.72]
[1741392852034,41.06801952,139.15,139.09,33.88161952]
[1741392852858,41.06801952,139.15,139.1,33.88161952]
[1741392852859,7.1864,139.15,139.1,33.88161952]
[1741392853442,7.1864,139.15,139.09,33.88161952]
[1741392855443,33.88161952,139.16,139.1,33.88161952]
[1741392855753,1.6052,139.19,139.13,33.88161952]
[1741392855754,8.7898,139.19,139.13,33.88161952]
[1741392856946,1.6052,139.19,139.13,33.88161952]
[1741392857136,33.88161952,139.22,139.15,33.88161952]
[1741392858282,41.06441952,139.22,139.16,7.1859]
[1741392858585,41.06441952,139.22,139.16,41.06751952]
[1741392858776,41.06441952,139.22,139.16,7.1859]
[1741392859992,41.06441952,139.22,139.15,33.88161952]
[1741392860201,33.88161952,139.2,139.14,33.88161952]
[1741392860379,33.88161952,139.2,139.14,41.06841952]
[1741392861578,41.06601952,139.19,139.13,41.06881952]
[1741392861789,33.88161952,139.18,139.12,47.72941952]
[1741392864105,90.4884,139.23,139.15,33.88161952]
[1741392864310,124.37001952,139.23,139.16,33.88161952]
[1741392864597,33.88161952,139.22,139.16,33.88161952]
[1741392865172,41.06441952,139.22,139.16,33.88161952]
[1741392865473,41.06441952,139.22,139.16,41.06741952]
[1741392867095,33.88161952,139.21,139.15,33.88161952]
[1741392867492,8.1884,139.23,139.18,33.88161952]
[1741392867696,0.033,139.25,139.2,33.88161952]
[1741392867868,7.2143,139.25,139.2,33.88161952]
[1741392868396,0.033,139.25,139.2,33.88161952]
[1741392868607,0.033,139.25,139.21,33.88161952]
[1741392868798,0.033,139.22,139.17,142.33725734]
[1741392868998,0.033,139.22,139.17,141.26]
[1741392869207,0.033,139.22,139.18,25.1472]
[1741392870287,0.033,139.22,139.21,33.88161952]
[1741392871300,0.033,139.22,139.21,41.06491952]
[1741392872004,0.033,139.22,139.21,42.14186188]
[1741392872808,0.033,139.25,139.24,33.88161952]
[1741392873008,0.033,139.25,139.24,40.52161952]
[1741392873506,0.033,139.25,139.24,47.70341952]
[1741392875320,169.3919,139.34,139.24,209.76075701]
[1741392875321,6.5552,139.34,139.24,209.76075701]
[1741392875489,6.5552,139.34,139.31,33.88161952]
[1741392875989,0.033,139.34,139.31,33.88161952]
[1741392877791,0.033,139.34,139.31,41.05981952]
[1741392878008,0.033,139.34,139.31,33.88161952]
[1741392879199,0.033,139.34,139.3,41.06011952]
[1741392880893,0.033,139.34,139.31,41.05971952]
[1741392882509,0.033,139.34,139.32,33.88161952]
[1741392883414,0.033,139.34,139.32,21.15621281]
[1741392883618,0.033,139.34,139.33,21.15621281]
[1741392885796,0.033,139.34,139.32,21.15621281]
[1741392886009,0.033,139.34,139.31,21.15621281]
[1741392887390,21.18921281,139.34,139.24,158.9801]
[1741392887585,21.15621281,139.33,139.27,21.15621281]
[1741392888716,7.1777,139.32,139.27,21.15621281]
[1741392889384,21.18921281,139.34,139.28,21.15621281]
[1741392889590,0.033,139.34,139.3,21.15621281]
[1741392889789,0.033,139.34,139.31,21.15621281]
[1741392890806,0.033,139.34,139.3,21.15621281]
[1741392893203,0.033,139.34,139.3,28.33491281]
[1741392894297,0.033,139.34,139.3,21.15621281]
[1741392895220,0.033,139.34,139.3,28.33491281]
[1741392895721,0.033,139.34,139.33,21.15621281]
[1741392896920,0.033,139.34,139.33,28.33341281]
[1741392901909,0.033,139.34,139.33,21.15621281]
[1741392902110,0.033,139.34,139.33,28.33341281]
[1741392902900,0.0001,139.34,139.33,162.93341281]
[1741392903109,0.0001,139.35,139.33,164.93341281]
[1741392903306,0.0001,139.35,139.34,22.23205968]
[1741392903710,0.0001,139.35,139.34,21.15621281]
[1741392904725,0.0001,139.35,139.34,22.23219469]
[1741392905138,0.0001,139.35,139.34,43.3884075]
[1741392905432,0.0001,139.35,139.34,187.1650075]
[1741392905609,0.033,139.39,139.35,3.5438]
[1741392905811,0.033,139.39,139.38,21.15621281]
[1741392906015,0.033,139.39,139.38,156.8317356]
[1741392906219,0.033,139.39,139.38,155.75621281]
[1741392907831,0.033,139.39,139.37,21.15621281]
[1741392908128,0.033,139.39,139.36,21.15621281]
[1741392908427,0.033,139.39,139.34,13.7163]
[1741392908428,0.033,139.39,139.37,21.15621281]
[1741392908651,0.033,139.39,139.38,21.15621281]
[1741392909017,0.033,139.39,139.38,22.23186127]
[1741392909436,0.033,139.39,139.38,29.40646127]
[1741392910010,0.033,139.42,139.38,181.94296127]
[1741392910226,0.033,139.42,139.41,21.15621281]
[1741392910405,0.033,139.48,139.41,43.387712]
[1741392910733,0.033,139.48,139.47,21.15621281]
[1741392911517,0.033,139.48,139.44,21.15621281]
[1741392911814,0.033,139.48,139.46,21.15621281]
[1741392912135,0.033,139.48,139.47,21.15621281]
[1741392912513,0.033,139.48,139.45,21.15621281]
[1741392912712,0.033,139.48,139.46,21.15621281]
[1741392913606,0.033,139.48,139.45,21.15621281]
[1741392913812,0.033,139.48,139.43,21.15621281]
[1741392914027,0.033,139.48,139.44,21.15621281]
[1741392914235,0.033,139.48,139.46,21.15621281]
[1741392914838,0.033,139.48,139.44,21.15621281]
[1741392915231,0.033,139.48,139.45,21.15621281]
[1741392915422,0.033,139.48,139.44,21.15621281]
[1741392917834,0.033,139.48,139.44,28.32771281]
[1741392918332,0.033,139.48,139.44,21.15621281]
[1741392918519,0.033,139.48,139.43,21.15621281]
[1741392918836,21.15621281,139.47,139.37,155.75621281]
[1741392919132,6.4203,139.45,139.4,21.15621281]
[1741392919520,6.4203,139.45,139.41,21.15621281]
[1741392919840,1.5308,139.44,139.38,6.58]
[1741392920015,1.5308,139.44,139.39,21.15621281]
[1741392921136,21.15621281,139.42,139.38,6.58]
[1741392921338,1.5308,139.44,139.41,21.15621281]
[1741392922238,29.85861281,139.44,139.38,6.58]
[1741392922622,1.5308,139.44,139.41,21.15621281]
[1741392922822,1.5308,139.44,139.43,21.15621281]
[1741392923437,6.4203,139.45,139.43,21.15621281]
[1741392924241,1.5308,139.47,139.44,21.15621281]
[1741392924447,1.5308,139.47,139.45,21.15621281]
[1741392924747,1.5308,139.47,139.44,21.15621281]
[1741392925058,1.5308,139.47,139.43,27.75621281]
[1741392926247,1.5308,139.47,139.46,21.15621281]
[1741392926432,0.033,139.48,139.46,21.15621281]
[1741392926847,0.033,139.48,139.45,21.15621281]
[1741392927328,0.033,139.48,139.46,21.15621281]
[1741392929552,0.033,139.48,139.46,28.32661281]
[1741392930048,0.033,139.48,139.43,13.772]
[1741392930349,0.033,139.48,139.44,21.15621281]
[1741392931158,0.033,139.48,139.45,21.15621281]
[1741392931852,0.033,139.48,139.44,7.1713]
[1741392932037,0.033,139.48,139.44,28.32751281]
[1741392932238,0.033,139.48,139.45,21.15621281]
[1741392933149,0.033,139.48,139.44,28.32751281]
[1741392933549,0.033,139.48,139.44,21.15621281]
[1741392934265,0.033,139.48,139.46,21.15621281]
[1741392934552,21.18921281,139.48,139.41,6.57]
[1741392934756,0.033,139.48,139.43,21.15621281]
[1741392935164,0.033,139.48,139.42,21.15621281]
[1741392937046,21.15621281,139.45,139.41,0.03]
[1741392937248,6.1202,139.42,139.41,0.03]
[1741392937449,27.27641281,139.42,139.41,0.03]
[1741392937658,25.1057,139.41,139.33,21.18621281]
[1741392937840,21.15621281,139.38,139.33,0.03]
[1741392938044,21.15621281,139.39,139.33,21.18621281]
[1741392939254,21.15621281,139.39,139.33,0.03]
[1741392939569,21.15621281,139.38,139.33,0.03]
[1741392939768,28.33131281,139.37,139.33,0.03]
[1741392940076,21.15621281,139.36,139.33,0.03]
[1741392940375,7.173,139.41,139.34,21.15621281]
[1741392940580,35.97321281,139.42,139.36,21.15621281]
[1741392940774,21.15621281,139.41,139.35,21.15621281]
[1741392940945,21.15621281,139.4,139.34,27.71621281]
[1741392941146,21.15621281,139.4,139.34,6.56]
[1741392941375,21.15621281,139.39,139.34,6.56]
[1741392941576,21.15621281,139.39,139.33,21.18621281]
[1741392941750,28.33081281,139.38,139.33,0.03]
[1741392942471,7.1746,139.38,139.33,21.18621281]
[1741392942784,28.32991281,139.4,139.34,21.15621281]
[1741392942990,7.6444,139.42,139.35,21.15621281]
[1741392942991,21.15621281,139.41,139.35,21.15621281]
[1741392943284,6.1202,139.42,139.4,21.15621281]
[1741392943452,15.094,139.45,139.4,21.15621281]
[1741392943952,36.25021281,139.45,139.38,28.33041281]
[1741392944185,36.25021281,139.45,139.39,21.15621281]
[1741392945387,36.25021281,139.45,139.39,28.33021281]
[1741392945755,21.15621281,139.43,139.37,6.56]
[1741392945956,21.15621281,139.4,139.34,27.71621281]
[1741392946281,71.15621281,139.44,139.33,0.03]
[1741392946282,28.89551281,139.37,139.33,0.03]
[1741392946486,21.15621281,139.36,139.33,0.03]
[1741392946788,7.7393,139.37,139.33,0.03]
[1741392946789,28.89551281,139.37,139.33,0.03]
[1741392946968,7.1756,139.36,139.33,0.03]
[1741392947855,28.33181281,139.36,139.33,0.03]
[1741392948081,21.15621281,139.34,139.33,0.03]
[1741392949179,7.1766,139.34,139.33,0.03]
[1741392949479,41.04101513,139.34,139.33,0.03]
[1741392949890,41.60371513,139.3,139.28,0.03]
[1741392950385,33.86441513,139.29,139.28,0.03]
[1741392951288,41.04361513,139.29,139.28,0.03]
[1741392952288,41.04361513,139.29,139.25,0.03]
[1741392952289,33.86441513,139.26,139.25,0.03]
[1741392953159,41.04521513,139.26,139.25,0.03]
[1741392953727,7.7393,139.25,139.21,0.03]
[1741392953883,33.86441513,139.22,139.21,0.03]
[1741392954176,33.86441513,139.22,139.19,0.03]
[1741392954482,33.86441513,139.23,139.19,0.03]
[1741392954684,90.0393,139.25,139.19,0.03]
[1741392954685,33.86441513,139.24,139.19,0.03]
[1741392955378,41.04671513,139.24,139.19,0.03]
[1741392955582,33.86441513,139.21,139.19,0.03]
[1741392955786,33.86441513,139.2,139.19,0.03]
[1741392956355,33.86441513,139.21,139.19,0.03]
[1741392956778,33.86441513,139.2,139.19,0.03]
[1741392957488,41.04831513,139.2,139.19,0.03]
[1741392957798,33.86441513,139.21,139.19,0.03]
[1741392958086,33.86441513,139.22,139.19,0.03]
[1741392958261,41.04641513,139.24,139.19,0.03]
[1741392958696,33.86441513,139.23,139.19,0.03]
[1741392959599,7.1828,139.22,139.19,0.03]
[1741392960393,33.86441513,139.2,139.19,0.03]
[1741392960572,41.04721513,139.22,139.19,0.03]
[1741392960778,33.86441513,139.23,139.19,0.03]
[1741392960998,41.04621513,139.24,139.19,0.03]
[1741392961179,7.1818,139.24,139.19,33.89441513]
[1741392961379,7.1818,139.24,139.2,33.86441513]
[1741392961578,7.1818,139.24,139.19,33.89441513]
[1741392961896,7.1818,139.24,139.19,41.07871513]
[1741392962099,7.1818,139.24,139.19,33.89441513]
[1741392962278,7.1818,139.24,139.19,0.03]
[1741392962471,7.1818,139.24,139.19,33.89441513]
[1741392962671,7.1818,139.24,139.19,0.03]
[1741392963577,7.1818,139.24,139.19,41.07881513]
[1741392963984,7.1818,139.24,139.19,33.89441513]
[1741392964214,33.86441513,139.23,139.19,0.03]
[1741392964499,33.86441513,139.2,139.19,0.03]
[1741392964691,33.86441513,139.22,139.19,0.03]
[1741392965197,33.86441513,139.2,139.19,0.03]
[1741392965892,41.04831513,139.2,139.19,0.03]
[1741392967503,7.183,139.22,139.19,0.03]
[1741392967695,40.42441513,139.23,139.19,0.03]
[1741392967994,7.7393,139.25,139.19,33.89441513]
[1741392968188,41.04631513,139.24,139.19,0.03]
[1741392968502,7.1819,139.24,139.19,0.03]
[1741392968725,33.86441513,139.23,139.19,0.03]
[1741392968996,33.86441513,139.2,139.19,0.03]
[1741392969914,7.1839,139.2,139.19,0.03]
[1741392970598,6.56,139.23,139.19,0.03]
[1741392970975,7.182,139.24,139.19,33.89441513]
[1741392971175,7.182,139.24,139.2,33.86441513]
[1741392971378,7.7393,139.25,139.2,33.86441513]
[1741392971678,14.9207,139.25,139.2,33.86441513]
[1741392971885,48.78511513,139.25,139.2,7.1839]
[1741392972079,89.4806,139.27,139.21,33.86441513]
[1741392972270,7.1806,139.27,139.2,7.1839]
[1741392972478,33.86441513,139.25,139.19,33.89441513]
[1741392973004,33.86441513,139.26,139.2,33.86441513]
[1741392973203,41.04501513,139.27,139.21,33.86441513]
[1741392973991,41.04501513,139.27,139.2,33.86441513]
[1741392974203,7.1806,139.27,139.21,33.86441513]
[1741392974808,7.1806,139.27,139.22,33.86441513]
[1741392975008,7.9951,139.29,139.2,7.1838]
[1741392975211,41.85951513,139.29,139.23,33.86441513]
[1741392976225,49.03891513,139.29,139.23,41.04621513]
[1741392976409,15.1743,139.29,139.24,33.86441513]
[1741392976616,15.1743,139.29,139.22,33.86441513]
[1741392976617,33.86441513,139.28,139.22,33.86441513]
[1741392976909,33.86441513,139.24,139.19,0.03]
[1741392977216,33.86441513,139.22,139.19,0.03]
[1741392977716,33.86441513,139.21,139.19,0.03]
[1741392978013,7.1839,139.2,139.19,0.03]
[1741392978732,41.04831513,139.2,139.19,0.03]